[Event "44th Chess Olympiad Open 2022"]
[Site "Chennai"]
[Date "2022.07.31"]
[Round "3.13"]
[White "Draskovic, Luka"]
[Black "Idani, Pouya"]
[Result "0-1"]
[WhiteElo "2503"]
[BlackElo "2641"]
[Annotator "RC"]
[PlyCount "102"]
[EventDate "2022.??.??"]
[TimeControl "60"]

1. e4 {[%emt 0:00:05]} c6 {[%emt 0:00:05]} 2. d4 {[%emt 0:00:18]} d5 {[%emt 0:
00:00]} 3. Nc3 {[%emt 0:03:08]} dxe4 {[%emt 0:00:05]} 4. Nxe4 {[%emt 0:00:04]}
Nf6 {[%emt 0:00:21]} 5. Nxf6+ {[%emt 0:00:40]} exf6 {[%emt 0:00:04]} 6. c3 {
[%emt 0:00:55]} Bd6 {[%emt 0:00:06]} 7. Bd3 {[%emt 0:00:23]} O-O {[%emt 0:00:
00]} 8. Qc2 {[%emt 0:00:31]} Re8+ {[%emt 0:00:07]} 9. Ne2 {[%emt 0:00:58]} h5 {
[%emt 0:00:04]} 10. O-O {[%emt 0:01:23]} h4 {[%emt 0:00:09]} 11. h3 {[%emt 0:
00:00]} Nd7 {[%emt 0:00:07]} 12. Bd2 {[%emt 0:02:33]} Nf8 {[%emt 0:00:07]} 13.
Rae1 {[%emt 0:01:13]} Bc7 {[%emt 0:01:30]} 14. Qc1 {[%emt 0:32:35]} Be6 {
[%emt 0:10:01]} 15. Bf4 {[%emt 0:22:01]} Bxa2 {[%emt 0:06:22]} 16. Bxc7 {
[%emt 0:01:23]} Qxc7 {[%emt 0:00:05]} 17. c4 {[%emt 0:00:22]} a5 {[%emt 0:00:
00]} 18. Qc3 {[%emt 0:00:54]} a4 {[%emt 0:00:10]} 19. Nc1 {[%emt 0:00:33]} Bb3
{[%emt 0:00:05]} 20. Nxb3 {[%emt 0:01:16]} axb3 {[%emt 0:00:06]} 21. Qxb3 {
[%emt 0:01:34]} Ne6 {[%emt 0:01:12]} 22. Qc3 {[%emt 0:04:04]} Qa5 {[%emt 0:00:
00]} 23. Re4 {[%emt 0:03:59]} g5 {[%emt 0:06:38]} 24. Rfe1 {[%emt 0:03:23]}
Red8 {[%emt 0:05:38]} 25. Bf1 {[%emt 0:06:00]} Kg7 {[%emt 0:08:34]} 26. Rb1 {
[%emt 0:05:00]} Rd7 {[%emt 0:03:00]} 27. c5 {[%emt 0:02:37]} Qd8 {[%emt 0:00:
00]} 28. Rd1 {[%emt 0:00:10]} f5 {[%emt 0:04:09]} 29. d5+ {[%emt 0:02:52]} Qf6
{[%emt 0:00:06]} 30. Re5 {[%emt 0:00:25]} Nxc5 {[%emt 0:05:34]} 31. f4 {
[%emt 0:01:22]} Ne4 {[%emt 0:00:44]} 32. Qe3 {[%emt 0:00:22]} Rad8 {[%emt 0:00:
00]} 33. Bc4 {[%emt 0:01:22]} cxd5 {[%emt 0:02:31]} 34. Rdxd5 {[%emt 0:00:31]}
Rxd5 {[%emt 0:01:06]} 35. Bxd5 {[%emt 0:00:29]} gxf4 {[%emt 0:01:19]} 36. Qxf4
{[%emt 0:00:05]} Ng3 {[%emt 0:00:11]} 37. Kh2 {[%emt 0:01:21]} Nf1+ {[%emt 0:
00:00]} 38. Kg1 {[%emt 0:00:16]} Ng3 {[%emt 0:00:03]} 39. Kh2 {[%emt 0:00:05]}
b6 {[%emt 0:00:30]} 40. Bf3 {[%emt 0:01:38]} Rd2 {[%emt 0:02:23]} 41. Rb5 {
[%emt 0:05:22]} Rf2 {[%emt 0:01:24]} 42. Rb4 {[%emt 0:03:58]} Ne2 {[%emt 0:00:
00]} 43. Qc7 {[%emt 0:02:11]} Qg5 {[%emt 0:11:31]} 44. Bg4 {[%emt 0:08:32]} Qe3
{[%emt 0:00:43]} 45. Bxe2 {[%emt 0:00:49]} Qxe2 {[%emt 0:00:04]} 46. Qc3+ {
[%emt 0:02:38]} f6 {[%emt 0:00:33]} 47. Qc7+ {[%emt 0:01:29]} Kg6 {[%emt 0:00:
00]} 48. Qc6 {[%emt 0:00:59]} Qe5+ {[%emt 0:00:04]} 49. Kg1 {[%emt 0:00:04]}
Qe1+ {[%emt 0:00:04]} 50. Kh2 {[%emt 0:00:04]} Qxb4 {[%emt 0:00:07]} 51. Qe8+ {
[%emt 0:00:03]} Kg7 {[%emt 0:00:08]} 0-1

[Event "44th Chess Olympiad Open 2022"]
[Site "Chennai"]
[Date "2022.07.31"]
[Round "3.14"]
[White "Abdusattorov, Nodirbek"]
[Black "Sebenik, Matej"]
[Result "1-0"]
[WhiteElo "2688"]
[BlackElo "2512"]
[Annotator "TA"]
[PlyCount "83"]
[EventDate "2022.??.??"]
[TimeControl "60"]

{[%evp 10,83,8,17,17,17,28,30,25,-10,22,8,8,14,14,15,16,16,16,16,16,17,44,47,
52,22,54,40,52,40,43,45,62,63,59,52,58,53,58,45,42,16,14,10,11,7,16,6,19,13,14,
30,27,25,24,38,26,22,11,0,137,132,71,94,142,137,125,136,150,157,149,149,5206,
5193,1086,1045]} 1. e4 {[%emt 0:00:16]} c6 {[%emt 0:00:10]} 2. d4 {[%emt 0:00:
00]} d5 {[%emt 0:00:06]} 3. e5 {[%emt 0:00:05]} Bf5 {[%emt 0:00:15]} 4. Nd2 {
[%emt 0:00:06]} e6 {[%emt 0:00:26]} 5. Nb3 {[%emt 0:00:08]} Nd7 {[%emt 0:01:01]
} 6. Nf3 {[%emt 0:00:12]} a6 {[%emt 0:01:41] B12: Caro-Kann: Advance Variation.
} 7. Be2 {[%emt 0:00:51]} h6 {[%emt 0:01:20]} 8. O-O {[%emt 0:03:42]} c5 {
[%emt 0:00:14] White has an edge.} 9. Re1 {[%emt 0:08:35]} Rc8 {[%emt 0:06:14]}
(9... c4 $5 {[%cal Rc4b3]} 10. Nbd2 Ne7 $11) 10. c3 {[%emt 0:01:20] [#]} Bh7
$146 {[%emt 0:06:03]} ({Predecessor:} 10... Ne7 11. Be3 cxd4 12. Nfxd4 Bg6 13.
f4 Nf5 14. Nxf5 Bxf5 15. Nd4 Be4 16. Rc1 Be7 {0-1 (31) Salgado Lopez,I (2584)
-Iturrizaga Bonelli,E (2607) chess24.com INT 2020}) 11. dxc5 {[%emt 0:04:32]}
Bxc5 {[%emt 0:00:16]} 12. Nfd4 {[%emt 0:07:00]} Ne7 {[%emt 0:02:22]} 13. Nxc5 {
[%emt 0:02:05]} Nxc5 {[%emt 0:00:08]} 14. a4 {[%emt 0:06:54]} O-O {[%emt 0:00:
00]} 15. Be3 {[%emt 0:00:06]} Nf5 {[%emt 0:19:33]} 16. Nxf5 {[%emt 0:00:23]}
Bxf5 {[%emt 0:00:05]} 17. Bd4 {[%emt 0:04:51]} Nd7 {[%emt 0:26:29]} (17... Qg5
{seems wilder.} 18. b4 Ne4 19. Qc1 Qxc1 20. Rexc1 a5) 18. Rc1 {[%emt 0:11:50]}
Rc6 {[%emt 0:08:15]} 19. Bf1 {[%emt 0:05:34]} Nb6 {[%emt 0:03:20]} 20. b3 {
[%emt 0:01:22][%cal Yb2b3,Yb3b4]} Qe7 {[%emt 0:00:48]} 21. a5 {[%emt 0:04:54]}
Nd7 {[%emt 0:00:45]} 22. b4 {[%emt 0:00:24]} Rfc8 {[%emt 0:00:00]} 23. Qd2 {
[%emt 0:05:37]} Qg5 {[%emt 0:02:40]} 24. Qb2 {[%emt 0:02:43]} Be4 {[%emt 0:01:
00]} 25. c4 {[%emt 0:00:07]} Qg6 {[%emt 0:04:00][%cal Rc6c4]} (25... Rxc4 $2
26. Rxc4 Rxc4 27. Rxe4 $18) 26. c5 {[%emt 0:08:10]} Bd3 {[%emt 0:00:00]} 27.
Rc3 {[%emt 0:00:47][%cal Yc1c3,Yc3g3,Yg3g6]} Bxf1 {[%emt 0:00:03]} 28. Rxf1 {
[%emt 0:00:06]} R6c7 {[%emt 0:01:02]} 29. f4 {[%emt 0:00:09][%cal Yf4f5] And
now f5! would win.} Nb8 {[%emt 0:06:44]} 30. f5 {[%emt 0:02:52]} exf5 {[%emt 0:
00:03]} 31. e6 $1 {[%emt 0:00:04]} fxe6 {[%emt 0:00:03] Hoping for ...Nc6.} 32.
Rg3 {[%emt 0:00:10]} Qh7 {[%emt 0:00:03]} 33. Qe2 {[%emt 0:02:08]} Re8 {
[%emt 0:01:18][%cal Ye6e5] [#] ...e5! is the strong threat.} 34. Be5 $36 {
[%emt 0:00:02] White is pushing.} Rf7 {[%emt 0:01:26]} (34... Rce7 $11 {
keeps the balance.}) 35. Bxb8 $16 {[%emt 0:00:00] White is much more active.}
Rxb8 {[%emt 0:00:01]} 36. Qxe6 {[%emt 0:00:08]} Rbf8 {[%emt 0:00:05]} (36... f4
$142) 37. Rg6 {[%emt 0:06:09]} ({Don't play} 37. Qxd5 $6 Kh8 $14) 37... Kh8 {
[%emt 0:00:07] [#]} 38. Rf4 $1 {[%emt 0:00:10]} Rf6 {[%emt 0:03:13]} 39. Rxf6 {
[%emt 0:00:20]} Rxf6 {[%emt 0:00:01]} 40. Qxd5 {[%emt 0:00:37]} g6 $2 {[%emt 0:
01:17]} (40... Qg8 $16 41. Qxb7 Qe6) 41. Qd8+ $18 {[%emt 0:30:28]} Kg7 {
[%emt 0:30:11]} 42. Rd4 {[%emt 0:00:32] Weighted Error Value: White=0.03 
(flawless) /Black=0.15 (very precise)} 1-0

[Event "44th Chess Olympiad Open 2022"]
[Site "Chennai"]
[Date "2022.07.31"]
[Round "3.14"]
[White "Sindarov, Javokhir"]
[Black "Borisek, Jure"]
[Result "1-0"]
[WhiteElo "2629"]
[BlackElo "2577"]
[Annotator "RC"]
[PlyCount "81"]
[EventDate "2022.??.??"]
[TimeControl "60"]

1. e4 {[%emt 0:00:03]} e5 {[%emt 0:00:08]} 2. Nf3 {[%emt 0:00:06]} Nc6 {
[%emt 0:00:13]} 3. Bc4 {[%emt 0:00:08]} Bc5 {[%emt 0:00:13]} 4. Nc3 {[%emt 0:
00:00]} Nf6 {[%emt 0:00:32]} 5. d3 {[%emt 0:00:06]} h6 {[%emt 0:00:30]} 6. O-O
{[%emt 0:00:32]} O-O {[%emt 0:00:47]} 7. h3 {[%emt 0:00:30]} a6 {[%emt 0:00:52]
} 8. Be3 {[%emt 0:00:12]} d6 {[%emt 0:00:51]} 9. a4 {[%emt 0:00:06]} Bxe3 {
[%emt 0:02:45]} 10. fxe3 {[%emt 0:00:05]} Be6 {[%emt 0:00:05]} 11. Nd2 {
[%emt 0:00:04]} Na5 {[%emt 0:06:46]} 12. Ba2 {[%emt 0:01:00]} Nc6 {[%emt 0:00:
00]} 13. Bc4 {[%emt 0:33:34]} Na5 {[%emt 0:00:10]} 14. Bxe6 {[%emt 0:04:07]}
fxe6 {[%emt 0:00:03]} 15. d4 {[%emt 0:00:06]} Nc6 {[%emt 0:18:51]} 16. Nf3 {
[%emt 0:07:59]} exd4 {[%emt 0:06:48]} 17. exd4 {[%emt 0:00:10]} d5 {[%emt 0:00:
00]} 18. Qd3 {[%emt 0:12:33]} Nh5 {[%emt 0:15:50]} 19. Ne2 {[%emt 0:04:09]} Nf4
{[%emt 0:04:37]} 20. Nxf4 {[%emt 0:04:39]} Rxf4 {[%emt 0:00:05]} 21. e5 {
[%emt 0:01:33]} Qe7 {[%emt 0:02:34]} 22. c3 {[%emt 0:01:13]} Raf8 {[%emt 0:00:
00]} 23. b4 {[%emt 0:01:07]} Qf7 {[%emt 0:02:04]} 24. b5 {[%emt 0:09:20]} Na5 {
[%emt 0:05:20]} 25. bxa6 {[%emt 0:00:31]} bxa6 {[%emt 0:00:03]} 26. Nd2 {
[%emt 0:01:02]} Ra8 {[%emt 0:00:06]} 27. Rxf4 {[%emt 0:00:53]} Qxf4 {[%emt 0:
00:00]} 28. Rf1 {[%emt 0:00:08]} Qg5 {[%emt 0:00:03]} 29. c4 {[%emt 0:01:04]}
Nxc4 {[%emt 0:13:03]} 30. Nxc4 {[%emt 0:00:05]} dxc4 {[%emt 0:00:03]} 31. Qxc4
{[%emt 0:00:06]} Qe7 {[%emt 0:02:22]} 32. a5 {[%emt 0:07:35]} Qd7 {[%emt 0:00:
00]} 33. Kh1 {[%emt 0:00:05]} Kh8 {[%emt 0:07:33]} 34. Rb1 {[%emt 0:01:27]} c6
{[%emt 0:05:30]} 35. Rb6 {[%emt 0:00:14]} Rd8 {[%emt 0:00:06]} 36. Rxa6 {
[%emt 0:00:32]} Qxd4 {[%emt 0:00:25]} 37. Qxd4 {[%emt 0:00:06]} Rxd4 {[%emt 0:
00:00]} 38. Rxc6 {[%emt 0:00:05]} Ra4 {[%emt 0:00:46]} 39. a6 {[%emt 0:00:10]}
Kg8 {[%emt 0:00:08]} 40. Rxe6 {[%emt 0:00:08]} Ra5 {[%emt 0:00:05]} 41. Rb6 {
[%emt 0:30:05]} 1-0

[Event "44th Chess Olympiad Open 2022"]
[Site "Chennai"]
[Date "2022.07.31"]
[Round "3.14"]
[White "Subelj, Jan"]
[Black "Yakubboev, Nodirbek"]
[Result "1/2-1/2"]
[WhiteElo "2498"]
[BlackElo "2620"]
[Annotator "RC"]
[PlyCount "57"]
[EventDate "2022.??.??"]
[TimeControl "60"]

1. e4 {[%emt 0:00:08]} e5 {[%emt 0:00:04]} 2. Nf3 {[%emt 0:00:26]} Nc6 {
[%emt 0:00:04]} 3. Bb5 {[%emt 0:00:31]} a6 {[%emt 0:00:06]} 4. Ba4 {[%emt 0:00:
00]} Nf6 {[%emt 0:00:06]} 5. O-O {[%emt 0:00:33]} Nxe4 {[%emt 0:00:04]} 6. d4 {
[%emt 0:00:59]} b5 {[%emt 0:03:10]} 7. Bb3 {[%emt 0:00:10]} d5 {[%emt 0:00:03]}
8. dxe5 {[%emt 0:00:30]} Be6 {[%emt 0:00:04]} 9. Qe2 {[%emt 0:02:07]} Nc5 {
[%emt 0:12:05]} 10. Rd1 {[%emt 0:06:03]} Nxb3 {[%emt 0:01:14]} 11. axb3 {
[%emt 0:00:15]} Be7 {[%emt 0:02:24]} 12. c4 {[%emt 0:01:19]} O-O {[%emt 0:00:
00]} 13. Nc3 {[%emt 0:21:54]} Nb4 {[%emt 0:04:07]} 14. cxd5 {[%emt 0:18:23]}
Nxd5 {[%emt 0:01:05]} 15. Ne4 {[%emt 0:01:33]} Qe8 {[%emt 0:22:03]} 16. Bg5 {
[%emt 0:03:19]} f6 {[%emt 0:02:51]} 17. Nd4 {[%emt 0:07:26]} fxg5 {[%emt 0:00:
00]} 18. Nxe6 {[%emt 0:00:08]} Nf4 {[%emt 0:00:03]} 19. Nxf4 {[%emt 0:00:22]}
Rxf4 {[%emt 0:00:03]} 20. Rac1 {[%emt 0:02:33]} Qg6 {[%emt 0:01:30]} 21. Ng3 {
[%emt 0:02:45]} Raf8 {[%emt 0:00:45]} 22. Qe3 {[%emt 0:04:26]} c5 {[%emt 0:00:
00]} 23. Rd2 {[%emt 0:03:21]} h5 {[%emt 0:03:50]} 24. Re2 {[%emt 0:02:52]} g4 {
[%emt 0:04:09]} 25. Ne4 {[%emt 0:00:39]} R4f5 {[%emt 0:05:25]} 26. Ng3 {
[%emt 0:02:02]} Rf4 {[%emt 0:01:52]} 27. Ne4 {[%emt 0:00:07]} R4f5 {[%emt 0:00:
00]} 28. Ng3 {[%emt 0:00:07]} Rf4 {[%emt 0:03:56]} 29. Ne4 {[%emt 0:01:40]}
1/2-1/2

[Event "44th Chess Olympiad Open 2022"]
[Site "Chennai"]
[Date "2022.07.31"]
[Round "3.14"]
[White "Markoja, Boris"]
[Black "Vokhidov, Shamsiddin"]
[Result "1/2-1/2"]
[WhiteElo "2452"]
[BlackElo "2552"]
[Annotator "RC"]
[PlyCount "64"]
[EventDate "2022.??.??"]
[TimeControl "60"]

1. d4 {[%emt 0:00:06]} Nf6 {[%emt 0:00:11]} 2. g3 {[%emt 0:00:23]} d5 {[%emt 0:
00:00]} 3. Bg2 {[%emt 0:00:18]} Bf5 {[%emt 0:00:53]} 4. Nf3 {[%emt 0:00:25]} e6
{[%emt 0:00:09]} 5. c4 {[%emt 0:03:06]} c6 {[%emt 0:02:46]} 6. Nc3 {[%emt 0:00:
00]} Be7 {[%emt 0:06:38]} 7. O-O {[%emt 0:01:54]} O-O {[%emt 0:02:09]} 8. b3 {
[%emt 0:08:55]} Ne4 {[%emt 0:03:48]} 9. Bb2 {[%emt 0:01:30]} Nd7 {[%emt 0:00:
00]} 10. Qc1 {[%emt 0:15:45]} a5 {[%emt 0:07:51]} 11. Rd1 {[%emt 0:03:27]} Qc7
{[%emt 0:08:02]} 12. Nd2 {[%emt 0:05:59]} Nxc3 {[%emt 0:02:43]} 13. Qxc3 {
[%emt 0:03:35]} Bb4 {[%emt 0:01:24]} 14. Qc1 {[%emt 0:00:14]} a4 {[%emt 0:00:
00]} 15. Bc3 {[%emt 0:06:51]} Qa5 {[%emt 0:04:44]} 16. Bxb4 {[%emt 0:09:29]}
Qxb4 {[%emt 0:00:02]} 17. a3 {[%emt 0:00:51]} Qb6 {[%emt 0:00:14]} 18. Qb2 {
[%emt 0:01:16]} axb3 {[%emt 0:11:44]} 19. cxd5 {[%emt 0:07:36]} exd5 {[%emt 0:
00:00]} 20. Nxb3 {[%emt 0:00:13]} Ra4 {[%emt 0:00:21]} 21. Ra2 {[%emt 0:02:03]}
Rfa8 {[%emt 0:01:19]} 22. f3 {[%emt 0:02:07]} Qa7 {[%emt 0:02:30]} 23. Rda1 {
[%emt 0:02:00]} b5 {[%emt 0:01:50]} 24. Qc1 {[%emt 0:02:25]} b4 {[%emt 0:07:48]
} 25. Qxc6 {[%emt 0:01:06]} bxa3 {[%emt 0:00:12]} 26. g4 {[%emt 0:00:55]} Be6 {
[%emt 0:01:40]} 27. e3 {[%emt 0:00:28]} Nb6 {[%emt 0:03:21]} 28. Bf1 {[%emt 0:
00:00]} Bd7 {[%emt 0:05:35]} 29. Qd6 {[%emt 0:00:34]} Nc8 {[%emt 0:01:50]} 30.
Qc5 {[%emt 0:01:12]} Nb6 {[%emt 0:02:23]} 31. Qd6 {[%emt 0:00:15]} Nc8 {
[%emt 0:00:28]} 32. Qc5 {[%emt 0:00:15]} Nb6 {[%emt 0:02:28]} 1/2-1/2

[Event "44th Chess Olympiad Open 2022"]
[Site "Chennai"]
[Date "2022.07.31"]
[Round "3.15"]
[White "Fressinet, Laurent"]
[Black "Salinas Herrera, Pablo"]
[Result "1-0"]
[WhiteElo "2631"]
[BlackElo "2526"]
[Annotator "RC"]
[PlyCount "51"]
[EventDate "2022.??.??"]
[TimeControl "60"]

1. d4 {[%emt 0:00:05]} d5 {[%emt 0:00:21]} 2. c4 {[%emt 0:00:09]} e6 {[%emt 0:
00:00]} 3. Nf3 {[%emt 0:00:19]} Nf6 {[%emt 0:00:06]} 4. g3 {[%emt 0:00:42]} Bd6
{[%emt 0:03:59]} 5. Bg2 {[%emt 0:03:05]} O-O {[%emt 0:00:09]} 6. O-O {[%emt 0:
00:00]} b6 {[%emt 0:01:06]} 7. Nc3 {[%emt 0:07:47]} Bb7 {[%emt 0:00:35]} 8. Ne5
{[%emt 0:01:01]} c5 {[%emt 0:39:18]} 9. Bf4 {[%emt 0:14:17]} Na6 {[%emt 0:00:
00]} 10. Rc1 {[%emt 0:10:06]} Qe7 {[%emt 0:05:25]} 11. Nb5 {[%emt 0:09:15]} Bb8
{[%emt 0:00:09]} 12. Bg5 {[%emt 0:02:24]} dxc4 {[%emt 0:09:31]} 13. Bxf6 {
[%emt 0:07:20]} gxf6 {[%emt 0:00:05]} 14. Bxb7 {[%emt 0:00:13]} Qxb7 {[%emt 0:
00:00]} 15. Nxc4 {[%emt 0:00:12]} Rd8 {[%emt 0:01:30]} 16. e3 {[%emt 0:00:47]}
Kh8 {[%emt 0:04:58]} 17. Qh5 {[%emt 0:03:12]} cxd4 {[%emt 0:01:21]} 18. Qh6 {
[%emt 0:02:18]} Be5 {[%emt 0:01:08]} 19. exd4 {[%emt 0:00:42]} Rxd4 {[%emt 0:
00:00]} 20. Nxe5 {[%emt 0:01:13]} fxe5 {[%emt 0:00:03]} 21. Nxd4 {[%emt 0:00:
00]} exd4 {[%emt 0:00:02]} 22. Qf6+ {[%emt 0:01:33]} Kg8 {[%emt 0:00:04]} 23.
Rfd1 {[%emt 0:00:42]} Rc8 {[%emt 0:01:40]} 24. Qg5+ {[%emt 0:00:43]} Kf8 {
[%emt 0:00:08]} 25. Rxc8+ {[%emt 0:00:11]} Qxc8 {[%emt 0:00:03]} 26. Rxd4 {
[%emt 0:00:11]} 1-0

[Event "44th Chess Olympiad Open 2022"]
[Site "Chennai"]
[Date "2022.07.31"]
[Round "3.15"]
[White "Lagarde, Maxime"]
[Black "Perez Gormaz, Matias"]
[Result "1-0"]
[WhiteElo "2631"]
[BlackElo "2387"]
[Annotator "RC"]
[PlyCount "81"]
[EventDate "2022.??.??"]
[TimeControl "60"]

1. c4 {[%emt 0:00:03]} e5 {[%emt 0:00:28]} 2. g3 {[%emt 0:00:05]} Nf6 {[%emt 0:
00:00]} 3. Bg2 {[%emt 0:01:29]} h6 {[%emt 0:00:56]} 4. b3 {[%emt 0:04:08]} Bc5
{[%emt 0:19:11]} 5. Bb2 {[%emt 0:00:15]} O-O {[%emt 0:00:14]} 6. e3 {[%emt 0:
00:00]} Nc6 {[%emt 0:07:09]} 7. a3 {[%emt 0:02:06]} a6 {[%emt 0:10:16]} 8. Nc3
{[%emt 0:06:10]} d6 {[%emt 0:01:45]} 9. Nge2 {[%emt 0:00:28]} Ba7 {[%emt 0:00:
00]} 10. O-O {[%emt 0:07:43]} Bd7 {[%emt 0:06:02]} 11. f4 {[%emt 0:03:21]} Rb8
{[%emt 0:04:47]} 12. Rc1 {[%emt 0:06:43]} Re8 {[%emt 0:06:49]} 13. Nd5 {
[%emt 0:07:36]} Nh7 {[%emt 0:00:18]} 14. b4 {[%emt 0:08:11]} exf4 {[%emt 0:00:
00]} 15. gxf4 {[%emt 0:07:12]} Ne7 {[%emt 0:00:08]} 16. Ng3 {[%emt 0:00:53]} c6
{[%emt 0:03:01]} 17. Nxe7+ {[%emt 0:10:58]} Qxe7 {[%emt 0:00:04]} 18. Nh5 {
[%emt 0:01:59]} g6 {[%emt 0:00:18]} 19. Ng3 {[%emt 0:02:25]} f5 {[%emt 0:04:47]
} 20. b5 {[%emt 0:09:37]} Bc5 {[%emt 0:07:33]} 21. Qb3 {[%emt 0:01:31]} Nf6 {
[%emt 0:00:38]} 22. d4 {[%emt 0:02:59]} Bb6 {[%emt 0:00:24]} 23. c5+ {[%emt 0:
00:00]} Be6 {[%emt 0:00:03]} 24. d5 {[%emt 0:00:23]} Bxc5 {[%emt 0:00:04]} 25.
dxe6 {[%emt 0:02:08]} Qxe6 {[%emt 0:01:25]} 26. Qxe6+ {[%emt 0:00:09]} Rxe6 {
[%emt 0:00:03]} 27. Bd4 {[%emt 0:02:08]} axb5 {[%emt 0:00:05]} 28. Bxc5 {
[%emt 0:00:32]} dxc5 {[%emt 0:00:03]} 29. e4 {[%emt 0:00:09]} fxe4 {[%emt 0:00:
00]} 30. Rxc5 {[%emt 0:01:00]} Re7 {[%emt 0:00:14]} 31. Re5 {[%emt 0:01:05]}
Rbe8 {[%emt 0:00:04]} 32. Rxe7 {[%emt 0:00:29]} Rxe7 {[%emt 0:00:06]} 33. Nxe4
{[%emt 0:00:47]} Rxe4 {[%emt 0:01:34]} 34. Bxe4 {[%emt 0:00:04]} Nxe4 {[%emt 0:
00:00]} 35. Re1 {[%emt 0:00:10]} Nf6 {[%emt 0:01:02]} 36. Re7 {[%emt 0:00:27]}
Nd5 {[%emt 0:00:01]} 37. Rxb7 {[%emt 0:00:05]} Nxf4 {[%emt 0:00:05]} 38. Kf2 {
[%emt 0:00:43]} Nd5 {[%emt 0:01:00]} 39. Kf3 {[%emt 0:01:10]} Nc3 {[%emt 0:00:
00]} 40. Kf4 {[%emt 0:00:43]} Nb1 {[%emt 0:00:30]} 41. a4 {[%emt 0:30:17]} 1-0

[Event "44th Chess Olympiad Open 2022"]
[Site "Chennai"]
[Date "2022.07.31"]
[Round "3.15"]
[White "Henriquez Villagra, Cristobal"]
[Black "Moussard, Jules"]
[Result "0-1"]
[WhiteElo "2620"]
[BlackElo "2672"]
[Annotator "ChessBase"]
[PlyCount "70"]
[EventDate "2022.??.??"]
[TimeControl "60"]

1. d4 {[%emt 0:00:16]} Nf6 {[%emt 0:00:15]} 2. Nf3 {[%emt 0:00:07]} e6 {
[%emt 0:00:27]} 3. Bf4 {[%emt 0:00:28]} d5 {[%emt 0:00:40]} 4. Nbd2 {[%emt 0:
00:00]} c5 {[%emt 0:01:15]} 5. e3 {[%emt 0:01:20]} Nc6 {[%emt 0:00:34]} 6. c3 {
[%emt 0:00:51]} Nh5 {[%emt 0:00:32]} 7. Be5 {[%emt 0:09:56]} f6 {[%emt 0:02:05]
} 8. Bg3 {[%emt 0:01:25]} g6 {[%emt 0:03:43]} 9. Be2 {[%emt 0:08:27]} Bd7 {
[%emt 0:04:38]} 10. Qc2 {[%emt 0:08:01]} cxd4 {[%emt 0:22:58]} 11. Nxd4 {
[%emt 0:09:13]} Nxg3 {[%emt 0:00:16]} 12. hxg3 {[%emt 0:00:05]} Qc7 {[%emt 0:
00:00]} 13. Rc1 {[%emt 0:14:17]} Nxd4 {[%emt 0:08:11]} 14. exd4 {[%emt 0:00:24]
} O-O-O {[%emt 0:00:23]} 15. Nf1 {[%emt 0:03:09]} Kb8 {[%emt 0:06:20]} 16. Ne3
{[%emt 0:00:15]} f5 {[%emt 0:02:37]} 17. Qd2 {[%emt 0:05:30]} h5 {[%emt 0:00:
00]} 18. c4 {[%emt 0:05:45]} Bc6 {[%emt 0:06:54]} 19. Bf3 {[%emt 0:06:54]} f4 {
[%emt 0:01:07]} 20. gxf4 {[%emt 0:06:22]} Qxf4 {[%emt 0:00:09]} 21. cxd5 {
[%emt 0:06:43]} exd5 {[%emt 0:00:05]} 22. Qd3 {[%emt 0:00:31]} Bg7 {[%emt 0:00:
00]} 23. Qb3 {[%emt 0:05:01]} Rd6 {[%emt 0:01:33]} 24. O-O {[%emt 0:04:31]}
Bxd4 {[%emt 0:00:24]} 25. Rxc6 {[%emt 0:02:05]} Rxc6 {[%emt 0:00:05]} 26. Nxd5
{[%emt 0:00:03]} Qe5 {[%emt 0:03:02]} 27. Qb4 {[%emt 0:00:22]} Bc5 {[%emt 0:00:
00]} 28. Qd2 {[%emt 0:00:33]} Rd8 {[%emt 0:01:48]} 29. Rd1 {[%emt 0:01:17]} g5
{[%emt 0:01:06]} 30. Re1 {[%emt 0:00:39]} Qd4 {[%emt 0:00:26]} 31. Qxg5 {
[%emt 0:00:28]} Qxf2+ {[%emt 0:00:05]} 32. Kh2 {[%emt 0:00:04]} Rcc8 {[%emt 0:
00:00]} 33. Rd1 {[%emt 0:01:03]} Bd6+ {[%emt 0:00:44]} 34. Kh1 {[%emt 0:00:14]}
Qg3 {[%emt 0:02:12]} 35. Qxg3 {[%emt 0:00:30]} Bxg3 {[%emt 0:00:05]} 0-1

[Event "44th Chess Olympiad Open 2022"]
[Site "Chennai"]
[Date "2022.07.31"]
[Round "3.15"]
[White "Lopez Silva, Hugo"]
[Black "Cornette, Matthieu"]
[Result "0-1"]
[WhiteElo "2403"]
[BlackElo "2551"]
[Annotator "RC"]
[PlyCount "54"]
[EventDate "2022.??.??"]
[TimeControl "60"]

1. e4 {[%emt 0:00:02]} e6 {[%emt 0:00:09]} 2. d4 {[%emt 0:00:50]} d5 {[%emt 0:
00:00]} 3. Nc3 {[%emt 0:00:47]} Nf6 {[%emt 0:00:10]} 4. Bg5 {[%emt 0:02:20]}
dxe4 {[%emt 0:00:15]} 5. Nxe4 {[%emt 0:01:04]} Be7 {[%emt 0:00:05]} 6. Bxf6 {
[%emt 0:01:57]} gxf6 {[%emt 0:00:08]} 7. Nf3 {[%emt 0:02:22]} f5 {[%emt 0:00:
00]} 8. Nc3 {[%emt 0:03:29]} a6 {[%emt 0:00:59]} 9. g3 {[%emt 0:07:24]} b5 {
[%emt 0:01:12]} 10. Bg2 {[%emt 0:00:53]} Bb7 {[%emt 0:00:05]} 11. Qe2 {[%emt 0:
00:00]} c5 {[%emt 0:14:22]} 12. d5 {[%emt 0:31:47]} b4 {[%emt 0:04:00]} 13.
dxe6 {[%emt 0:05:05]} bxc3 {[%emt 0:02:19]} 14. exf7+ {[%emt 0:02:51]} Kf8 {
[%emt 0:00:09]} 15. Rd1 {[%emt 0:00:12]} Qb6 {[%emt 0:04:48]} 16. O-O {[%emt 0:
00:00]} cxb2 {[%emt 0:07:17]} 17. Ng5 {[%emt 0:13:07]} Bxg2 {[%emt 0:10:53]}
18. Ne6+ {[%emt 0:02:58]} Kxf7 {[%emt 0:03:14]} 19. Qh5+ {[%emt 0:02:34]} Kxe6
{[%emt 0:01:08]} 20. Rfe1+ {[%emt 0:08:49]} Be4 {[%emt 0:00:24]} 21. g4 {
[%emt 0:00:02]} Bg5 {[%emt 0:08:22]} 22. h4 {[%emt 0:00:01]} Ke7 {[%emt 0:00:
00]} 23. gxf5 {[%emt 0:01:41]} Be3 {[%emt 0:08:51]} 24. Rxe3 {[%emt 0:00:43]}
Nd7 {[%emt 0:05:46]} 25. Rxe4+ {[%emt 0:00:26]} Kd8 {[%emt 0:00:02]} 26. Qf7 {
[%emt 0:00:34]} Ra7 {[%emt 0:00:58]} 27. Re6 {[%emt 0:00:31]} b1=Q {[%emt 0:00:
00]} 0-1